bitfinex/quotes_ETHUSD_20220219
["timestamp","ask_amount","ask_price","bid_price","bid_amount"]
[1645269963873,0.9032,2769.2,2769.1,0.03712867]
[1645269964272,1.80629,2769.3,2769.1,0.03712867]
[1645269964873,0.90312,2769.3,2769.1,0.03712867]
[1645269965875,0.90312,2769.3,2769.1,0.03934733]
[1645269966276,1.80631,2769.3,2769.1,0.03934733]
[1645269966925,1.80631,2769.3,2769.1,0.03712867]
[1645269967125,1.80631,2769.3,2769.1,0.03934733]
[1645269967925,2.7095,2769.3,2769.1,0.03934733]
[1645269968130,2.7095,2769.3,2769.2,0.45079886]
[1645269968131,1.80631,2769.3,2769.2,0.45079886]
[1645269968833,0.90312,2769.3,2769.2,0.45079886]
[1645269969428,0.90312,2769.3,2769.1,0.00221862]
[1645269969628,1.80627,2769.3,2769.1,0.00221862]
[1645269970271,2.70947,2769.3,2769.1,0.00221862]
[1645269970471,2.70947,2769.3,2768.8,1.13331539]
[1645269970675,0.90319,2769.2,2769.1,0.00221866]
[1645269971672,0.90311,2769.3,2768.9,0.9031021]
[1645269971872,0.90311,2769.3,2769.0,0.45301756]
[1645269972071,0.90311,2769.3,2769.0,0.45660546]
[1645269972271,0.84223932,2769.4,2769.1,0.45079886]
[1645269972472,0.25,2769.3,2769.1,0.45079886]
[1645269973074,0.25,2769.3,2769.1,1.37213956]
[1645269973572,0.25,2769.3,2769.2,0.45079886]
[1645269974030,1.15311,2769.3,2769.2,0.45079886]
[1645269974634,0.25,2769.3,2769.2,3.95079886]
[1645269975036,0.25,2769.3,2769.2,0.45079886]
[1645269976035,0.25,2769.3,2769.2,1.12972749]
[1645269976234,0.25,2769.3,2769.2,0.45079886]
[1645269976636,0.25,2769.3,2769.2,1.12972749]
[1645269977034,0.25,2769.3,2769.2,4.62972749]
[1645269977436,0.25,2769.3,2769.2,3.95079886]
[1645269978072,0.25,2770.2,2769.2,3.95079886]
[1645269978274,1.80575,2770.3,2769.6,1.8056]
[1645269978275,1.09432578,2770.1,2769.6,1.8056]
[1645269978478,1.34432578,2770.2,2769.7,0.45079886]
[1645269978674,9.5,2770.0,2768.8,3.17576579]
[1645269978881,9.5,2770.0,2768.2,0.6871975]
[1645269978882,0.01225911,2769.0,2768.2,0.6871975]
[1645269979077,0.01207031,2768.3,2767.7,0.39009779]
[1645269979277,0.01207031,2768.3,2767.8,0.28533451]
[1645269979278,1.99802578,2768.2,2767.8,0.28533451]
[1645269979477,1.99802578,2768.2,2767.5,0.0553489]
[1645269979478,15.59432578,2768.1,2767.5,0.0553489]
[1645269979677,11.0,2767.9,2767.5,0.0553489]
[1645269979877,0.0553,2767.5,2767.1,5.52e-05]
[1645269980076,0.0553,2767.5,2766.6,0.70221833]
[1645269980077,17.514,2767.2,2766.7,0.07674065]
[1645269980280,17.514,2767.2,2766.4,0.0058135]
[1645269980281,0.90428,2766.7,2766.4,0.0058135]
[1645269980477,0.90428,2766.7,2766.4,1.35e-05]
[1645269980478,17.514,2766.5,2766.4,1.35e-05]
[1645269980676,17.514,2766.5,2766.2,1.76e-05]
[1645269980677,11.0,2766.3,2766.2,1.76e-05]
[1645269980976,11.1807,2766.2,2765.9,1.76813489]
[1645269981181,6.514,2766.0,2765.9,1.08078946]
[1645269981438,7.9393736,2766.0,2765.7,0.68734543]
[1645269981628,6.514,2765.8,2765.7,0.68734543]
[1645269981831,7.035,2765.8,2765.5,0.00223372]
[1645269982029,7.035,2765.8,2765.0,0.45045417]
[1645269982230,7.035,2765.8,2765.6,1.17857397]
[1645269982432,0.90441,2765.7,2765.6,1.17857397]
[1645269982630,1.42541,2765.7,2765.6,1.17857397]
[1645269983231,1.42541,2765.7,2764.9,0.41522164]
[1645269984636,0.9044,2765.5,2764.9,0.41522164]
[1645269984841,0.9044,2765.5,2765.0,0.93796639]
[1645269984842,2.3298,2765.5,2765.0,0.93796639]
[1645269985275,2.3298,2765.5,2765.2,0.00219468]
[1645269985276,3.5,2765.4,2765.2,0.00219468]
[1645269985673,2.3298,2765.5,2765.2,0.00219468]
[1645269985872,4.1388192,2765.5,2765.2,0.00219468]
[1645269986073,3.23429,2765.5,2765.0,0.93796639]
[1645269986277,3.71329,2765.5,2765.2,0.00219465]
[1645269986480,0.25,2765.4,2765.2,0.00219465]
[1645269986875,3.75,2765.4,2765.2,0.00219465]
[1645269987075,0.521,2765.3,2765.2,0.00219465]
[1645269987274,0.521,2765.3,2764.9,0.41522164]
[1645269987475,1.80924,2765.2,2764.9,0.41522164]
[1645269987675,2.33024,2765.2,2764.9,0.41522164]
[1645269988074,1.42562,2765.2,2764.9,0.41522164]
[1645269988274,1.42562,2765.2,2765.0,1.17030193]
[1645269988475,1.42562,2765.2,2764.9,0.41522164]
[1645269988942,1.42562,2765.2,2764.9,0.01961652]
[1645269989137,2.3302254,2765.2,2764.9,0.01961652]
[1645269989532,1.42562,2765.2,2764.9,1.00551998]
[1645269989732,1.42562,2765.2,2764.9,0.01742164]
[1645269989733,4.92562,2765.2,2764.9,0.01742164]
[1645269990130,2.5110072,2765.2,2764.9,0.01742164]
[1645269990333,2.7272072,2765.2,2764.9,0.01742164]
[1645269990933,2.5465072,2765.2,2764.9,0.01742164]
[1645269991135,0.90473,2764.8,2763.9,7.49]
[1645269991341,0.90473,2764.8,2763.5,1.616e-05]
[1645269991342,6.514,2764.4,2763.5,1.616e-05]
[1645269991539,6.514,2764.4,2763.3,3.7031003]
[1645269991540,0.01203654,2764.2,2763.3,3.7031003]
[1645269991751,15.5121855,2764.3,2762.9,0.00693628]
[1645269991752,0.01242869,2763.6,2762.9,0.00693628]
[1645269991944,11.52668184,2763.0,2762.9,0.00951776]
[1645269992139,11.52668184,2763.0,2762.0,0.0553489]
[1645269992140,0.87446076,2762.8,2762.0,0.0553489]
[1645269992335,0.87446076,2762.8,2762.0,0.0053489]
[1645269992336,1.00163025,2762.1,2762.0,0.0053489]
[1645269992687,12.57403025,2762.1,2760.5,1.8894]
[1645269992894,12.57403025,2762.1,2760.2,27.68049566]
[1645269992895,7.25297523,2762.0,2760.2,27.68049566]
[1645269993088,0.25,2761.8,2760.2,27.68049566]
[1645269993282,0.25,2761.8,2761.1,0.05343181]
[1645269993283,0.7019,2761.7,2761.1,0.05343181]
[1645269993493,4.42560143,2761.6,2761.1,0.05343181]
[1645269993686,0.4309,2761.8,2761.4,0.00219221]
[1645269993887,0.25,2761.8,2761.4,0.00219221]
[1645269994290,0.25,2761.9,2761.5,0.05115811]
[1645269994487,0.5,2761.9,2761.5,0.05115811]
[1645269994683,0.25,2761.9,2761.7,1.05334932]
[1645269994881,0.25,2761.9,2761.5,0.05115811]
[1645269995081,0.25,2761.9,2761.0,1.0216287]
[1645269995082,0.25,2761.9,2761.8,0.04945284]
[1645269995283,0.25,2761.9,2761.2,0.05286339]
[1645269995484,0.771,2761.9,2761.2,0.05286339]
[1645269995786,0.89880902,2761.4,2761.2,0.05286339]
[1645269996476,1.0,2761.8,2761.2,0.05286339]
[1645269996477,0.01206582,2761.8,2761.2,0.05286339]
[1645269996760,0.4309,2761.9,2761.2,0.05286339]
[1645269996965,0.25,2761.9,2761.2,0.05286339]
[1645269997366,0.521,2763.1,2761.4,6.5]
[1645269997566,0.181,2763.3,2761.5,9.5]
[1645269997771,2.06095,2763.9,2762.1,5.0]
[1645269997772,0.521,2763.4,2762.1,5.0]
[1645269997968,0.521,2763.4,2762.0,0.01299504]
[1645269997969,0.25,2763.4,2762.0,0.01299504]
[1645269998167,0.25,2763.9,2762.0,0.01299504]
[1645269998168,0.521,2763.8,2762.0,0.01299504]
[1645269998367,0.25,2763.6,2763.1,0.95933013]
[1645269998569,0.25,2764.5,2762.6,0.00218464]
[1645269998570,0.68007183,2762.8,2762.6,0.00218464]
[1645269999270,0.68007183,2762.8,2761.9,3.5]
[1645269999574,0.68007183,2762.8,2762.6,0.99194663]
[1645269999767,0.68007183,2762.8,2762.6,1.51294663]
[1645269999968,0.68007183,2762.8,2762.6,0.00218468]
[1645270000578,0.68007183,2762.8,2762.2,0.521]
[1645270000779,0.68007183,2762.8,2762.6,0.00218468]
[1645270001381,0.68007183,2762.8,2762.7,0.04433703]
[1645270002285,0.68007183,2762.8,2762.6,0.00218464]
[1645270002479,0.68007183,2762.8,2762.7,0.04433703]
[1645270004038,0.68007183,2762.8,2762.7,1.0637923]
[1645270005137,0.68007183,2762.8,2762.7,0.04433703]
[1645270005944,0.1809,2763.6,2763.5,0.96460236]
[1645270006143,1.0,2764.3,2763.5,0.96460236]
[1645270006144,0.1809,2764.2,2763.5,0.96460236]
[1645270006344,0.1809,2764.2,2763.6,0.521]
[1645270006546,0.25,2764.5,2763.6,0.521]
[1645270006741,0.1809,2765.1,2763.6,0.521]
[1645270006942,0.25,2764.9,2763.7,0.00169242]
[1645270007143,0.25,2764.9,2763.8,0.521]
[1645270007341,1.20872218,2764.9,2764.3,0.92477907]
[1645270007981,0.25,2764.9,2764.5,0.00169196]
[1645270008881,0.25,2764.9,2764.4,3.5]
[1645270009085,0.25,2764.9,2764.5,0.521]
[1645270009280,0.25,2764.9,2764.6,0.5226919]
[1645270009480,0.25,2764.9,2764.7,0.521]
[1645270010082,0.25,2764.9,2764.3,1.17677907]
[1645270010083,0.25,2764.9,2764.3,1.69777907]
[1645270010480,0.25,2764.9,2764.7,1.19511306]
[1645270011282,0.25,2764.9,2764.7,1.19342122]
[1645270011535,0.25,2764.9,2764.7,1.19522358]
[1645270012531,0.25,2764.9,2764.7,1.19342122]
[1645270012733,0.25,2764.9,2764.7,1.19522358]
[1645270012929,2.08534,2765.4,2764.7,1.19522358]
[1645270013630,2.05949,2765.2,2764.7,1.19522358]
[1645270013830,0.90474,2765.1,2764.7,1.19342122]
[1645270014031,0.90474,2765.1,2764.9,0.0018022]
[1645270015183,2.05949,2765.2,2764.9,0.00177736]
[1645270015184,0.25,2765.2,2764.9,0.00177736]
[1645270016085,0.25,2765.2,2764.7,1.19342122]
[1645270016490,0.25,2765.2,2764.9,0.00177733]
[1645270017284,0.25,2765.2,2764.7,1.19342122]
[1645270017684,0.25,2765.2,2764.9,0.00177733]
[1645270018486,4.338e-05,2764.5,2764.3,0.252]
[1645270018689,4.338e-05,2764.5,2764.4,5.0]
[1645270018940,4.338e-05,2764.5,2764.4,5.434]
[1645270019139,4.338e-05,2764.5,2764.4,9.934]
[1645270019338,4.338e-05,2764.5,2764.4,10.94766274]
[1645270019538,4.338e-05,2764.5,2764.4,8.16896274]
[1645270019737,4.338e-05,2764.5,2764.4,13.59796274]
[1645270020537,4.338e-05,2764.5,2764.4,17.09796274]
[1645270020942,4.338e-05,2764.5,2764.4,17.25409339]
[1645270021139,4.338e-05,2764.5,2764.4,28.25409339]
[1645270021341,4.338e-05,2764.5,2764.4,22.25409339]
[1645270021945,0.25,2766.8,2765.1,0.90389]
[1645270022141,0.25,2766.8,2765.6,1.082]
[1645270022345,0.25,2766.8,2765.8,1.082]
[1645270022540,0.25,2766.8,2766.0,1.082]
[1645270022796,0.25,2766.8,2766.7,1.082]
[1645270023591,0.25,2766.8,2766.2,0.434]
[1645270023796,0.1807,2766.7,2765.5,0.434]
[1645270023992,11.90414,2766.6,2765.5,0.434]
[1645270024193,2.62035289,2766.7,2765.7,0.91562595]
[1645270024194,0.9042919,2766.4,2765.7,0.91562595]
[1645270024392,0.25,2766.2,2765.3,0.434]
[1645270024592,0.4307,2766.2,2765.3,0.434]
[1645270024793,0.25,2766.2,2765.3,0.434]
[1645270024992,0.90432,2766.0,2765.3,0.434]
[1645270025397,0.90432,2766.0,2764.6,0.0008]
[1645270025398,13.54878017,2765.9,2765.1,1.14708202]
[1645270025593,1.7165983,2765.8,2765.1,1.14708202]
[1645270025792,1.5358983,2765.7,2765.1,1.14708202]
[1645270025993,0.1807,2765.6,2765.1,1.14708202]
[1645270026439,1.15442,2765.7,2765.1,1.14708202]
[1645270027037,1.53604032,2765.6,2765.1,1.14708202]
[1645270027237,1.53604032,2765.6,2764.6,0.4348]
[1645270027238,3.34507032,2765.6,2764.6,0.4348]
[1645270027437,0.90458,2765.2,2764.7,0.00216513]
[1645270028050,12.20458,2765.2,2764.7,0.00216513]
[1645270028243,12.20458,2765.2,2764.6,0.0008]
[1645270028244,13.14210812,2765.1,2764.6,0.0008]
[1645270028440,2.24022,2765.1,2764.6,0.0008]
[1645270028641,0.90476,2765.0,2764.6,0.0008]
[1645270028940,0.1807,2764.9,2764.7,0.00216513]
[1645270029139,0.90476,2765.0,2764.7,0.00216513]
[1645270029538,0.90476,2765.0,2764.6,1.13306703]
[1645270029739,1.53627399,2764.9,2764.6,0.0008]
[1645270029942,1.53627399,2764.9,2764.7,0.00216513]
[1645270030381,0.90476,2765.0,2764.7,0.00216513]
[1645270030783,1.53630167,2764.9,2764.6,0.0008]
[1645270031081,0.90476,2765.0,2764.7,0.00216513]
[1645270031286,0.90466,2764.9,2764.7,0.00216513]
[1645270031882,0.90476,2765.0,2764.6,0.0008]
[1645270032382,2.64430707,2764.9,2764.7,0.00216513]
[1645270032585,1.00800451,2764.9,2764.7,0.00216513]
[1645270032785,1.53645695,2764.8,2764.7,0.00216513]
[1645270033191,0.90467,2764.7,2764.6,0.0008]
[1645270033390,13.44112695,2764.7,2764.6,0.0008]
[1645270033587,0.99060376,2764.1,2764.0,0.00866245]
[1645270033791,1.53672054,2764.1,2764.0,0.00866245]
[1645270034040,1.53672054,2764.1,2762.7,0.04433703]
[1645270034041,11.0,2763.9,2762.7,0.04433703]
[1645270034236,0.90538,2763.6,2762.7,0.04433703]
[1645270034437,1.08628,2763.6,2762.7,0.04433703]
[1645270034637,2.06075,2763.7,2762.3,0.04661073]
[1645270034638,1.8107267,2763.4,2762.3,0.04661073]
[1645270034836,0.25,2763.2,2762.3,0.04661073]
[1645270035039,0.90532,2763.1,2762.3,0.04661073]
[1645270035236,0.90545,2762.9,2762.1,0.04774757]
[1645270035536,0.90545,2762.9,2761.5,3.58071318]
[1645270035537,0.90545,2762.9,2761.7,0.05002127]
[1645270035851,1.08635,2762.9,2761.7,0.05002127]
[1645270036036,1.08635,2762.9,2761.6,0.05058969]
[1645270036242,0.88868113,2762.6,2761.8,0.89212328]
[1645270036439,0.90552,2762.3,2761.6,0.05058969]
[1645270036640,0.90552,2762.3,2761.9,0.04888442]
[1645270036838,0.90552,2762.3,2761.4,0.05172654]
[1645270037041,0.90552,2762.3,2761.1,0.434]
[1645270037042,0.90552,2762.3,2761.2,0.05286339]
[1645270037438,0.90563,2762.0,2761.3,0.90071486]
[1645270037704,3.75,2761.9,2761.2,0.05286339]
[1645270037894,0.25,2761.9,2761.4,0.05172654]
[1645270038288,0.25,2761.9,2761.1,0.05343181]
[1645270038493,0.25,2761.9,2761.5,0.00214592]
[1645270038990,0.25,2761.9,2761.6,0.05058969]
[1645270039589,0.25,2761.9,2761.6,0.00214589]
[1645270039991,0.25,2761.9,2761.7,0.05002127]
[1645270040891,0.25,2761.9,2761.7,0.05216708]
[1645270041291,0.25,2761.9,2761.8,0.04945284]
[1645270042235,0.25,2761.9,2761.7,0.00214577]
[1645270042634,1.1557,2761.9,2761.8,0.04945284]
[1645270043238,0.25,2761.9,2761.7,0.00214581]
[1645270043642,0.25,2761.9,2761.8,0.04945284]
[1645270045290,0.1809,2762.8,2761.8,0.04945284]
[1645270045491,0.25,2762.7,2761.8,0.48345284]
[1645270045691,0.25,2762.7,2761.9,5.00356478]
[1645270045885,0.25,2762.7,2762.0,0.434]
[1645270046085,0.25,2762.7,2762.5,0.38366008]
[1645270046291,0.25,2762.7,2762.1,0.00356478]
[1645270046292,0.25,2762.7,2762.6,0.434]
[1645270046485,0.25,2762.7,2762.6,0.04490546]
[1645270046886,0.25,2762.7,2762.5,0.04761907]
[1645270047085,0.25,2762.7,2762.6,0.04490546]
[1645270049129,1.9914858,2763.5,2762.6,0.04490546]
[1645270049338,0.25,2763.6,2762.7,0.434]
[1645270049533,0.25,2763.6,2762.8,0.00356478]
[1645270049733,0.25,2763.6,2762.9,0.434]
[1645270049930,0.25,2764.3,2762.9,0.47720019]
[1645270050134,0.25,2764.3,2763.0,0.00356478]
[1645270050333,0.94984204,2764.1,2763.2,0.15622969]
[1645270050733,0.94984204,2764.1,2763.3,0.04449127]
[1645270051331,0.94984204,2764.1,2763.4,0.04035807]
[1645270051538,1.1549422,2764.3,2763.6,0.00214433]
[1645270051733,1.1549422,2764.3,2763.1,0.00857862]
[1645270051734,0.00455022,2763.4,2762.4,6.9960745]
[1645270051932,0.00455022,2763.4,2762.8,0.434]
[1645270052136,0.25455022,2763.4,2762.8,0.434]
[1645270052533,0.25455022,2763.4,2762.8,1.35342107]
[1645270054000,0.25455022,2763.4,2763.0,0.00211799]
[1645270054205,0.25455022,2763.4,2763.0,0.43611799]
[1645270054801,0.25455022,2763.4,2763.0,0.434]
[1645270055205,0.25455022,2763.4,2763.0,0.43611799]
[1645270055599,0.25455022,2763.4,2763.2,0.86330309]
[1645270057035,0.25455022,2763.4,2763.0,0.00211799]
[1645270057235,0.25455022,2763.4,2762.7,0.434]
[1645270057640,11.0,2763.1,2761.7,1.9422]
[1645270057838,11.0,2763.1,2761.1,2.4191]
[1645270057839,6.82378268,2762.9,2761.1,2.4191]
[1645270058035,6.82378268,2762.9,2761.0,1.0216287]
[1645270058036,1.05241373,2762.1,2761.0,1.0216287]
[1645270058238,0.25,2761.9,2761.0,1.0216287]
[1645270058642,0.90566,2761.7,2761.0,1.0216287]
[1645270059442,1.81142,2761.7,2761.0,1.0216287]
[1645270059641,0.90585,2761.5,2761.0,1.0216287]
[1645270059836,0.90585,2761.5,2761.0,0.4726287]
[1645270060036,5.31189,2761.4,2761.0,0.4726287]
[1645270060288,2.06189,2761.4,2761.0,0.4726287]
[1645270060485,2.96775,2761.4,2761.0,0.4726287]
[1645270060690,1.08663,2761.6,2761.0,0.4726287]
[1645270060882,0.25,2761.4,2761.0,0.4726287]
[1645270061887,0.90577,2761.3,2761.0,0.4726287]
[1645270062090,3.5,2761.2,2761.0,0.4726287]
[1645270062285,3.5,2761.2,2761.1,0.00211306]
[1645270062485,0.90577,2761.3,2761.1,0.00211306]
[1645270062686,0.88577,2761.3,2761.1,0.00211306]
[1645270063289,0.88577,2761.3,2761.0,0.4726287]
[1645270063487,3.5,2761.2,2761.1,0.00211306]
[1645270063685,0.88577,2761.3,2761.1,0.00211306]
[1645270063934,1.79166,2761.3,2761.1,0.00211306]
[1645270064334,5.29166,2761.3,2761.1,0.00211306]
[1645270064639,5.29166,2761.3,2761.0,0.4726287]
[1645270064834,0.88577,2761.3,2761.0,0.4726287]
[1645270065942,0.88577,2761.3,2761.0,0.47474179]
[1645270066936,0.88577,2761.3,2761.0,0.4726287]
[1645270067151,0.88577,2761.3,2761.0,0.47473651]
[1645270067712,1.08132934,2761.1,2761.0,0.47473651]
[1645270068097,1.08132934,2761.1,2761.0,0.4726287]
[1645270069397,1.03132934,2761.1,2761.0,0.4226287]
[1645270069996,0.88577,2761.3,2761.0,0.4226287]
[1645270070797,1.7916179,2761.3,2761.0,0.42473652]
[1645270071101,4.79e-05,2761.3,2761.0,0.42473652]
[1645270071302,4.79e-05,2761.3,2761.0,0.85873652]
[1645270071740,4.79e-05,2761.3,2761.0,0.8566287]
[1645270071944,4.79e-05,2761.3,2761.0,1.76424652]
[1645270072143,4.79e-05,2761.3,2761.0,2.66971032]
[1645270072743,4.79e-05,2761.3,2761.0,7.66971032]
[1645270072943,4.79e-05,2761.3,2761.0,2.6676025]
[1645270073244,4.79e-05,2761.3,2761.0,0.85873652]
[1645270073943,4.79e-05,2761.3,2761.1,0.90551]
[1645270074343,4.79e-05,2761.3,2761.0,1.33025179]
[1645270074545,4.79e-05,2761.3,2761.0,0.42474179]
[1645270075396,4.79e-05,2761.3,2761.0,0.4226287]
[1645270075593,4.79e-05,2761.3,2761.0,0.42474179]
[1645270075792,4.79e-05,2761.3,2761.0,2.23575929]
[1645270076595,4.79e-05,2761.3,2761.0,2.2336462]
[1645270076794,4.79e-05,2761.3,2761.0,2.23575929]
[1645270077598,4.79e-05,2761.3,2761.1,1.81082]
[1645270079240,4.79e-05,2761.3,2761.2,0.02853636]
[1645270084089,4.79e-05,2761.3,2761.1,0.07619201]
[1645270084889,4.79e-05,2761.3,2761.1,0.07455442]
[1645270085089,4.79e-05,2761.3,2761.1,4.48159204]
[1645270085295,4.79e-05,2761.3,2761.2,9.022]
[1645270085493,4.79e-05,2761.3,2761.2,11.7844]
[1645270086290,4.79e-05,2761.3,2761.2,8.37051616]
[1645270086549,4.79e-05,2761.3,2761.2,3.2844]
[1645270087943,4.79e-05,2761.3,2761.2,0.522]
[1645270089349,4.79e-05,2761.3,2761.1,2.71785756]
[1645270089350,4.79e-05,2761.3,2761.1,0.00174456]
[1645270089844,4.79e-05,2761.3,2761.0,0.4226287]
[1645270090047,4.79e-05,2761.3,2761.1,0.00172052]
[1645270090898,4.79e-05,2761.3,2761.0,0.4226287]
[1645270091296,4.79e-05,2761.3,2761.1,0.00172052]
[1645270092095,4.79e-05,2761.3,2761.0,0.4226287]
[1645270092495,4.79e-05,2761.3,2761.1,0.00172052]
[1645270093095,0.25,2761.6,2761.3,0.00124129]
[1645270094838,0.25,2761.6,2761.3,0.00296707]
[1645270095440,2.9672325,2761.6,2761.3,0.00296707]
[1645270095842,2.9672325,2761.6,2761.3,0.00124129]
[1645270096040,2.9672325,2761.6,2761.3,0.00296707]
[1645270096238,3.8729825,2761.6,2761.3,0.00296707]
[1645270096440,1.17531303,2761.5,2761.3,0.00296707]
[1645270096639,2.08099303,2761.5,2761.3,0.00296707]
[1645270096843,2.08099303,2761.5,2761.3,0.00124129]
[1645270097242,0.25,2761.6,2761.3,0.00334988]
[1645270098088,0.25,2761.6,2761.3,0.00124129]
[1645270098498,0.25,2761.6,2761.3,0.00334984]
[1645270099388,0.25,2761.6,2761.3,0.00124129]
[1645270099588,0.25,2761.6,2761.3,0.00334984]
[1645270100392,0.25,2761.6,2761.3,0.90886984]
[1645270100592,0.25,2761.6,2761.3,0.90676129]
[1645270100790,0.25,2761.6,2761.3,0.90886888]
[1645270101435,0.25,2761.6,2761.3,0.00334888]
[1645270101639,0.25,2761.6,2761.3,0.00124129]
[1645270102038,0.25,2761.6,2761.3,0.00334888]
[1645270102841,0.25,2761.6,2761.3,0.00124129]
[1645270103240,0.25,2761.6,2761.3,0.00334888]
[1645270103845,1.53785273,2761.5,2761.3,0.00334888]
[1645270104042,1.53785273,2761.5,2761.3,0.00124129]
[1645270104341,1.53785273,2761.5,2761.3,0.00335415]
[1645270104542,0.25,2761.6,2761.3,0.00335415]
[1645270107697,0.25,2761.6,2761.3,0.00124129]
[1645270109044,0.25,2762.2,2761.3,0.90676129]
[1645270109239,1.53759035,2762.1,2761.4,1.8107799]
[1645270109438,1.53759035,2762.1,2761.6,0.13128203]
[1645270109640,1.53759035,2762.1,2761.6,1.94207203]
[1645270109839,1.53759035,2762.1,2761.6,1.03667203]
[1645270110742,3.5,2762.9,2761.7,0.90536]
[1645270110944,3.5,2762.9,2761.9,0.905261]
[1645270110945,1.53741382,2762.7,2761.9,0.905261]
[1645270111552,1.53741382,2762.7,2762.2,0.00180454]
[1645270111743,1.53741382,2762.6,2762.2,0.00180454]
[1645270111946,3.5,2762.5,2762.2,0.00180454]
[1645270112146,1.53741382,2762.4,2762.2,0.00180454]
[1645270112346,1.53741382,2762.3,2762.2,0.00180454]
[1645270112548,1.53741382,2762.6,2761.5,0.02272426]
[1645270112801,1.53741382,2762.5,2762.2,0.00180454]
[1645270112990,1.53741382,2762.4,2762.2,0.00180454]
[1645270113193,1.53741382,2762.3,2762.2,0.00180454]
[1645270113592,1.53741382,2762.6,2762.2,0.00180454]
[1645270113792,1.53741382,2762.5,2761.7,0.90543]
[1645270113991,1.53741382,2762.4,2762.1,0.00180457]
[1645270114197,1.53741382,2762.3,2762.1,0.00180457]
[1645270114393,1.53741382,2762.2,2762.1,0.00180457]
[1645270114795,1.53741382,2762.6,2762.1,0.90712457]
[1645270114995,1.53741382,2762.5,2762.1,0.90532]
[1645270115393,1.53741382,2762.4,2762.1,0.90532]
[1645270115594,1.53741382,2762.3,2762.1,0.90532]
[1645270115796,1.53741382,2762.2,2762.1,0.90532]
[1645270115999,1.53741382,2762.6,2762.1,0.90532]
[1645270117246,1.53741382,2762.6,2762.0,0.90536]
[1645270117445,1.53741382,2762.6,2762.1,0.9053513]
[1645270117646,1.53741382,2762.6,2762.2,0.00170619]
[1645270118145,1.53741382,2762.6,2762.2,0.00080074]
[1645270118349,1.53741382,2762.6,2762.2,0.90616074]
[1645270118546,1.53741382,2762.6,2762.2,0.90536]
[1645270119749,1.53741382,2762.6,2762.2,1.8106862]
[1645270120400,1.53741382,2762.6,2762.1,0.90712836]
[1645270120800,1.53741382,2762.6,2762.1,1.81248776]
[1645270120996,1.53741382,2762.6,2762.0,0.90535]
[1645270121197,1.53741382,2762.6,2762.1,0.00172836]
[1645270121596,1.53741382,2762.6,2762.2,0.90534]
[1645270122400,1.53741382,2762.6,2762.2,1.81069]
[1645270122601,1.53741382,2762.6,2762.2,2.7160191]
[1645270123003,1.53741382,2762.6,2762.2,2.71587]
[1645270123499,1.53741382,2762.6,2762.4,0.90525]
[1645270124150,1.53741382,2762.6,2762.4,1.8104817]
[1645270124352,0.25,2762.7,2762.5,0.20202768]
[1645270124561,0.25,2763.1,2762.7,0.90501]
[1645270124852,0.25227428,2763.1,2762.7,0.90501]
[1645270125055,0.25227428,2763.1,2762.8,0.9050535]
[1645270125254,0.25227428,2763.1,2762.7,5.60078361]
[1645270125854,0.25,2763.1,2762.7,5.60078361]
[1645270126054,0.25227453,2763.1,2762.7,5.60078361]
[1645270126255,0.25227453,2763.1,2762.8,1.8101435]
[1645270126457,0.25227453,2763.1,2762.8,2.7152035]
[1645270126854,0.25,2763.1,2762.7,0.17039671]
[1645270127059,0.25,2763.1,2762.3,4.66383]
[1645270127259,0.25233312,2763.1,2762.5,0.9052061]
[1645270127897,0.25233312,2763.1,2762.3,1.81043]
[1645270128099,0.2,2763.1,2762.6,0.90524]
[1645270128500,0.20233303,2763.1,2762.6,0.90524]
[1645270129097,1.10759303,2763.1,2762.4,2.71564]
[1645270129297,0.2,2763.1,2762.4,0.90527]
[1645270129601,1.04198459,2763.0,2762.5,0.9052202]
[1645270130199,0.20233306,2763.1,2762.5,0.9052202]
[1645270130401,0.20233306,2763.1,2762.6,0.90523]
[1645270130601,0.2,2763.1,2762.5,0.90527]
[1645270130801,0.20239109,2763.1,2762.5,0.90527]
[1645270131439,0.20239109,2763.1,2762.6,1.81042]
[1645270131640,0.20239109,2763.1,2762.6,1.810366]
[1645270131843,0.2,2763.1,2762.7,0.23547318]
[1645270132039,0.20239112,2763.1,2762.7,1.14065318]
[1645270132642,0.20239112,2763.1,2762.7,2.04582688]
[1645270133040,0.2,2763.1,2762.7,2.04583318]
[1645270133241,0.20239116,2763.1,2762.7,2.04583318]
[1645270133844,0.20239116,2763.1,2762.8,0.9051415]
[1645270134045,0.20239116,2763.1,2762.8,1.8100715]
[1645270134246,0.2,2763.1,2762.9,3.5]
[1645270134448,0.00455022,2763.4,2762.9,4.40494]
[1645270134646,0.00455022,2763.4,2763.0,1.42676]
[1645270134848,0.00455022,2763.4,2763.1,3.5]
[1645270135045,0.00455022,2763.4,2763.2,1.41843659]
[1645270135295,0.00455022,2763.4,2763.2,2.32316659]
[1645270135891,0.00455022,2763.4,2763.3,0.90473]
[1645270136092,0.00455022,2763.4,2763.3,1.42673]
[1645270136491,0.00455022,2763.4,2763.3,4.92673]
[1645270136692,0.00455022,2763.4,2763.3,1.42673]
[1645270137695,0.00455022,2763.4,2763.3,4.92673]
[1645270137896,1e-08,2763.4,2763.3,4.92673]
[1645270138496,0.1809,2764.8,2763.3,4.92673]
[1645270138698,0.66965205,2765.0,2763.6,0.90454]
[1645270138949,0.66965205,2765.0,2764.3,1.00725369]
[1645270139149,1.75373022,2765.1,2764.3,1.00725369]
[1645270139749,0.25,2765.0,2764.3,1.00725369]
[1645270140157,0.25,2765.0,2764.5,0.90452]
[1645270140551,0.0023908,2764.8,2764.5,0.90452]
[1645270141152,0.0023908,2764.8,2764.5,0.90455]
[1645270141350,0.25,2765.0,2764.5,0.90455]
[1645270141752,0.2023908,2765.0,2764.5,0.90455]
[1645270142253,0.2023908,2765.0,2764.5,1.8090559]
[1645270142452,0.2023908,2765.0,2764.6,0.90448]
[1645270142892,0.2023908,2765.0,2764.7,0.1268756]
[1645270144094,0.20414743,2765.0,2764.7,1.0313856]
[1645270144497,1.47810978,2764.9,2764.7,1.0313856]
[1645270145302,1.47986641,2764.9,2764.7,1.0313856]
[1645270145496,1.47986641,2764.9,2764.6,1.20157854]
[1645270145695,1.47986641,2764.9,2764.6,2.20883223]